Cogmind - Beta 13 @@@ ROGUE MODE // 2024.05.13 @ 22:41:52 Player: Compound1080 Result: Self-destructed Performance ------------- Evolutions (1) 500 Regions Visited (2) 400 Robots Destroyed (19) 95 Value Destroyed (430) 430 Prototype IDs (0) 0 Alien Tech Used (0) 0 Bonus (0) 0 TOTAL SCORE: 1425 Bonus ------- None Cogmind --------- Core Integrity 233/400 Matter 298/300 Energy 100/100 System Corruption 0% Temperature Cool (18) Movement Core (150) Ox2 Location -9/Materials Parts ------- > --- POWER (1) -------- (None) > --- PROPULSION (2) --- (None) > --- UTILITY (4) ------ Small Storage Unit Visual Processing Unit Terrain Scanner Terrain Scan Processor > --- WEAPON (2) ------- Medium Laser > --- INVENTORY (8) ---- Ion Engine Aluminum Leg Aluminum Leg Flight Unit Flight Unit Flight Unit Huge Storage Unit Sensor Array Peak State ------------ > --- POWER ------------ Light Ion Engine > --- PROPULSION ------- Aluminum Leg Aluminum Leg > --- UTILITY ---------- Small Storage Unit Visual Processing Unit Terrain Scanner Terrain Scan Processor > --- WEAPON ----------- Medium Laser Light Assault Rifle > --- INVENTORY -------- Ion Engine Aluminum Leg Aluminum Leg Flight Unit Flight Unit Flight Unit Huge Storage Unit Sensor Array [Rating: 11] Favorites ----------- Power Light Ion Engine Engine Light Ion Engine Propulsion Light Treads Treads Light Treads Leg Aluminum Leg Utility Small Storage Unit Device Terrain Scanner Storage Small Storage Unit Processor Visual Processing Unit Weapon Light Assault Rifle Energy Gun Medium Laser Ballistic Gun Light Assault Rifle Build | -11 -10 -9 ------- Run | Yrd Mat Mat Slots Evolved 2 | . . 2 Power . | . . . Propulsion . | . . . Utility 2 | . . 2 Weapon . | . . . Parts Attached 16 | 6 8 2 Power 3 | 1 2 . Engine 3 | 1 2 . Core . | . . . Reactor . | . . . Propulsion 4 | 2 2 . Treads 2 | 2 . . Leg 2 | . 2 . Wheel . | . . . Hover . | . . . Flight . | . . . Utility 4 | 1 1 2 Device 1 | . . 1 Storage 1 | 1 . . Processor 2 | . 1 1 Hackware . | . . . Protection . | . . . Artifact . | . . . Weapon 5 | 2 3 . Energy Gun 2 | . 2 . Energy Cannon . | . . . Ballistic Gun 3 | 2 1 . Ballistic Cannon . | . . . Launcher . | . . . Special Weapon . | . . . Impact Weapon . | . . . Slashing Weapon . | . . . Piercing Weapon . | . . . Special Melee Weapon . | . . . Unidentified Prototypes . | . . . Parts Lost 8 | . 4 4 Power 2 | . 1 1 Propulsion 3 | . 1 2 Utility . | . . . Weapon 3 | . 2 1 Highest Loss Streak 4 | . 2 4 To Critical Strikes . | . . . Average Slot Usage (%) 88 | . 87 93 Engine 13 | . 13 11 Treads 13 | . 16 . Leg 12 | . 11 20 Device 1 | . . 8 Storage 13 | . 14 11 Processor 6 | . 3 20 Energy Gun 11 | . 11 11 Ballistic Gun 15 | . 16 11 Naked Turns . | . . . Heaviest Build 12 | 11 11 12 Greatest Support 40 | 40 40 20 Greatest Overweight (x) 3 | . . 3 Average Overweight (x) . | . . . Largest Inventory Capacity 8 | 8 8 8 Average Capacity 7 | 6 8 8 Most Carried 8 | 4 8 8 Average Carried 4 | 2 4 8 Final Capacity 8 | 8 8 8 Final Carried 8 | 4 8 8 Class Distribution -------------------- 88% | Mutant 11% | Skirmisher Dominant Class ---------------- Mutant | -10/Materials Skirmisher | -9/Materials Resources | -11 -10 -9 ----------- Run | Yrd Mat Mat Matter Collected 460 | 235 225 . Remotely . | . . . Salvage Created 722 | . 705 17 Parts 45 | . 41 4 Haulers Intercepted 1 | . 1 . Recyclers Shooed 2 | . 2 . Parts Field Recycled . | . . . Retrieved Matter . | . . . Parts Self-Destructed . | . . . Prevented . | . . . Kills | -11 -10 -9 ------- Run | Yrd Mat Mat Combat Hostiles Destroyed 10 | . 10 . Guns 10 | . 10 . Classes Destroyed 7 | . 6 1 Worker 2 | . 2 . Builder 1 | . . 1 Tunneler 2 | . 2 . Hauler 1 | . 1 . Recycler 2 | . 2 . Watcher 1 | . 1 . Grunt 10 | . 10 . Best Kill Streak 8 | . 8 1 Combat Bots Only 2 | . 2 . Max Kills in Single Turn 1 | . 1 1 Gunslinging . | . . . Exploded . | . . . Melee . | . . . Uniques/NPCs Destroyed . | . . . Combat | -11 -10 -9 -------- Run | Yrd Mat Mat Hostile Shots Fired 140 | . 87 53 Missed 28 | . 17 11 Damage Taken 1321 | . 866 455 Core 388 | . 221 167 Absorbed by Shields . | . . . Core Remaining (%) 55 | 100 11 . Volleys Fired 78 | . 77 1 Largest 2 | . 2 2 Hottest 90 | . 90 70 Shots Fired 144 | . 142 2 Gun 144 | . 142 2 Cannon . | . . . Launcher . | . . . Special . | . . . Kinetic 83 | . 82 1 Thermal 61 | . 60 1 Explosive . | . . . Electromagnetic . | . . . Robot Hit Streak 16 | . 16 2 Robot Miss Streak 3 | . 3 . Penetration Max . | . . . Secondary Targets 2 | . 2 . Max Gunslinging Chain 1 | . 1 . Shots Hit Robots 100 | . 99 1 Core Hits 39 | . 38 1 Critical Kills . | . . . Critical Parts Destroyed . | . . . Critical Strikes 5 | . 5 . Burn 5 | . 5 . Melee Attacks . | . . . Impact . | . . . Slashing . | . . . Piercing . | . . . Sneak Attacks . | . . . Combat Hostiles . | . . . Follow-up Attacks . | . . . Damage Inflicted 1109 | . 1097 12 Guns 1109 | . 1097 12 Cannons . | . . . Explosions . | . . . Melee . | . . . Ramming . | . . . Kinetic 587 | . 587 . Thermal 522 | . 510 12 Explosive . | . . . Electromagnetic . | . . . Impact . | . . . Slashing . | . . . Piercing . | . . . Highest Corruption . | . . . Average Corruption . | . . . Corruption Purged . | . . . Corruption Blocked . | . . . Overload Shots . | . . . Overflow Damage . | . . . Projectiles . | . . . Explosions . | . . . Melee . | . . . Knockbacks . | . . . Impact . | . . . Kinetic . | . . . Secondary . | . . . Self-Inflicted Damage . | . . . Shots . | . . . Rammed . | . . . Targets Rammed . | . . . Kicked . | . . . Crushed . | . . . Highest Temperature 196 | . 196 24 Average Temperature 63 | . 64 10 Received Heat Transfer 705 | . 501 204 Siege Activations . | . . . Robots Corrupted . | . . . Combat Hostiles . | . . . Parts Fried . | . . . Impact Corruptions . | . . . Robots Melted . | . . . Combat Hostiles . | . . . Parts Melted 3 | . 3 . Heat Transferred 1865 | . 1828 37 Parts Sabotaged . | . . . Parts Stolen . | . . . Parts Stripped . | . . . Power Chain Reactions . | . . . Alert | -11 -10 -9 ------- Run | Yrd Mat Mat Peak Influence 154 | . 154 95 Initial 55 | . . 55 Average 63 | . 69 66 Maximum Alert Level . | . . . Low Security (%) 100 | 100 100 100 Level 1 . | . . . Level 2 . | . . . Level 3 . | . . . Level 4 . | . . . Level 5 . | . . . High Security . | . . . Max Security . | . . . Squads Dispatched 2 | . 1 1 Investigation . | . . . Extermination . | . . . Reinforcement 2 | . 1 1 Assault . | . . . Garrison . | . . . Intercept . | . . . Searches Triggered . | . . . Construction Impeded . | . . . Haulers Reinforced . | . . . Active Scanning Responses . | . . . Cargo Convoy Interrupts . | . . . Stealth | -11 -10 -9 --------- Run | Yrd Mat Mat Distress Signals 2 | . . 2 Communications Jammed . | . . . Distress Signals . | . . . Times Spotted 38 | . 18 20 Peak Tracking Total 18 | . 3 18 Tactical Retreats . | . . . Traps | -11 -10 -9 ------- Run | Yrd Mat Mat Traps Triggered . | . . . Indirectly . | . . . Trap Hack Attempts . | . . . Triggered . | . . . Disarmed . | . . . Reprogrammed 2 | . 2 . Reused . | . . . Traps Extracted . | . . . Installed . | . . . Triggered . | . . . Machines | -11 -10 -9 ---------- Run | Yrd Mat Mat Machines Disabled . | . . . Max in Single Turn . | . . . Machines Repaired . | . . . Machines Dismantled . | . . . Machines Sabotaged . | . . . Overloaded Fab Kills . | . . . Hacking | -11 -10 -9 --------- Run | Yrd Mat Mat Machines Accessed 4 | . 3 1 Terminals 4 | . 3 1 Fabricators . | . . . Repair Stations . | . . . Recycling Units . | . . . Scanalyzers . | . . . Garrison Access . | . . . Total Hacks 17 | . 13 4 Successful 8 | . 7 1 Failed 9 | . 6 3 Catastrophic 1 | . 1 . Database Lockouts . | . . . Manual 6 | . 2 4 Terminals 17 | . 13 4 Fabricators . | . . . Repair Stations . | . . . Recycling Units . | . . . Scanalyzers . | . . . Garrison Access . | . . . Terminal Hacks 8 | . 7 1 Branch Access Points 2 | . 1 1 Terminal Index 1 | . 1 . Locate Traps 1 | . 1 . Reprogram Traps 2 | . 2 . Hauler Manifests 1 | . 1 . Zone Layout 1 | . 1 . Fabricator Hacks . | . . . Repair Station Hacks . | . . . Recycling Unit Hacks . | . . . Scanalyzer . | . . . Garrison Access Hacks . | . . . Unauthorized Hacks . | . . . Terminals . | . . . Fabricators . | . . . Repair Stations . | . . . Recycling Units . | . . . Scanalyzers . | . . . Garrison Access . | . . . Data Cores Recovered . | . . . Used . | . . . Hacking Detections 2 | . 2 . Full Trace Events . | . . . Feedback Events . | . . . Feedback Blocked . | . . . Robot Schematics Acquired . | . . . Robots Built . | . . . Authchips . | . . . Time . | . . . Total Robot Build Rating . | . . . Part Schematics Acquired . | . . . Parts Built . | . . . Authchips . | . . . Time . | . . . Total Part Build Rating . | . . . Parts Repaired . | . . . Time . | . . . Parts Recycled . | . . . Recycled Matter . | . . . Retrieved Matter . | . . . Retrieved Components . | . . . Parts Scanalyzed . | . . . Part Schematics Acquired . | . . . Parts Damaged . | . . . Bothacking | -11 -10 -9 ------------ Run | Yrd Mat Mat Used RIF Installer . | . . . Robots Hacked . | . . . Non-combat . | . . . Combat . | . . . Robot Hacks Applied . | . . . Relay Couplers Released . | . . . Fabnet Peak Effective % . | . . . Robots Rewired . | . . . Allies Hacked . | . . . Hacks Repelled . | . . . Allies | -11 -10 -9 -------- Run | Yrd Mat Mat Total Allies . | . . . Largest Group . | . . . Highest-Rated Group . | . . . Highest-Rated Ally . | . . . Total Orders . | . . . Ally Attacks . | . . . Total Damage . | . . . Kills . | . . . Allies Corrupted . | . . . Allies Melted . | . . . Intel | -11 -10 -9 ------- Run | Yrd Mat Mat Robot Analysis Total . | . . . Derelict Logs Recovered . | . . . Drone Launches . | . . . Drone Recoveries . | . . . Exploration | -11 -10 -9 ------------- Run | Yrd Mat Mat Turns Passed 887 | 68 670 149 Spaces Moved 427 | 37 277 113 Core 8 | 3 . 5 Treads 178 | 34 144 . Legs 241 | . 133 108 Wheels . | . . . Hover . | . . . Flight . | . . . Fastest Speed 50 | 50 120 120 Average Speed 137 | 151 140 126 Slowest Speed 200 | 160 160 200 Overloaded Moves . | . . . Propulsion Burnouts . | . . . Robots Hopped . | . . . Cave-ins Triggered . | . . . Exploration Rate (%) 20 | 3 37 22 Regions Visited 2 Branch Regions . Pre-discovered Areas . | . . . Known Exits Taken . | . . . Unknown Exits Taken 2 | 1 1 . Scrap Searched . | . . . Spaces Dug . | . . . Terrain Destroyed . | . . . Melee . | . . . Projectile . | . . . AOE . | . . . Terrain Rammed . | . . . Walls Destroyed . | . . . Machines Disabled . | . . . Actions | -11 -10 -9 --------- Run | Yrd Mat Mat Total 587 | 46 425 116 Wait 51 | . 51 . Move 425 | 36 276 113 Hop . | . . . Pick Up 13 | 4 9 . Fast Attach 12 | 6 4 2 Attach 2 | . 2 . Detach . | . . . Swap 2 | . 2 . Drop 4 | . 4 . Fire 78 | . 77 1 Melee . | . . . Ram . | . . . Kick . | . . . Crush . | . . . Escape Stasis . | . . . Rewire . | . . . Trap . | . . . Miscellaneous . | . . . Route ------- -11/Scrapyard -10/Materials (discovered 2 exits: *Mat / Min) -9/Materials (discovered 2 exits: Min / Sto) History --------- Turn | Location | Event 42 | -11/Scrapyard | Discovered new exit (range 15) 69 | -11/Scrapyard | Entered Materials 329 | -10/Materials | Build established: Mutant 529 | -10/Materials | Core integrity fell below 50% 622 | -10/Materials | Core integrity fell below 20% 674 | -10/Materials | Discovered new exit (range 14) 674 | -10/Materials | Identified exit to Mines 739 | -10/Materials | Entered another Materials area 739 | -9/Materials | Evolved 2 slots: Utility x2 848 | -9/Materials | Identified exit to Mines 848 | -9/Materials | Identified exit to Storage 888 | -9/Materials | Self-destructed Last Messages --------------- 00848_ Connecting with Terminal... 00848_ Current location identified: Materials >>Access(Branch) Found 2 branch access points: (85,91) Mines (23,24) Storage Map updated. 00849_ C-30 ARC bursts open, deploying its payload. 00849_ G-47 Trooper unfolds itself. 00849_ G-34 Mercenary unfolds itself. 00852_ K-01 Serf collects debris. 00856_ ALERT: Hostiles spotted, dispatching reinforcements to Terminal M003. 00857_ K-01 Serf collects debris. 00865_ Aluminum Leg destroyed. 00867_ K-01 Serf collects debris. 00880_ Aluminum Leg destroyed. 00882_ Lgt. Ion Engine destroyed. 00886_ Lgt. Assault Rifle destroyed. Map ----- +----------------------------------------------------+ | """ " ??????????????? | | # """ ! "%" ??????????????? | | # "" ??????????????? | | # T" ???????????????? | | ######" "###### "" ########???????????????? | | ?????#"R"###### #??#???????????????????? | | ???" #"""##??## #??????????????????????? | | ?????#####????# """ #??????????????????????? | | ???" #?##??#### """ #?##???????????????????? | | ???????#?#?#??# """ ##?#????#??????????????? | | ???##?????#?# r #??#???????????????????? | | ? ????????????# #???????#??????????????? | | ?#?############ """ ##???#?????????????????? | | """ r #??##??????????????????? | | """ g #??#?#?#???????????????? | | g #??????????????????????? | | ? t ##??????##?????????????? | | ? #####################gg #???? ? ??? ???????????? | | ?????????#??#?#??#?##?# ag#??????? ? ???????????? | | ?????????############## #????? ? ?? #??????????? | | ??????? g #?? ?? ????????????????? | | ??????? #??? ?? ????#??????????? | | ??????? g #???? ? ?? ????????????? | | ??????? a gr s ###?? ?????????????????? | | ???????? g s #?#?? ??????? ?????????? | | ????????# s @#???????????#??????????? | | ????????# s ? ??? ???????????????? | | ????????# ?? ?? ? ???????????? | | ????????? ss ?????????????????? | | ????????? #####################?#??????????????? | | ?????????? ?#??????#???????????? ????????????????? | | ??????????????????????????? ?? ????????????????? | | ???????????????????#?#??????????????"????????????? | | ?????????????????????????????????????????????????? | | ????????????????????????#????????????????????????? | | ???????????????????#?????????????????????????????? | | ?????????????????????????????????????????????????? | | ?????????????????????????????????????????????????? | | ?????????????????????????????????????????????????? | | ???????????????????????????????????????????>?????? | | ?????????????????????????????????????????????????? | | ?????????????????????????????????????????????????? | | ?????????????????????????????????????????????????? | | ?????????????????????????????????????????????????? | | ?????????????????????????????????????????????????? | | ?????????????????????????????????????????????????? | | ?????????????????????????????????????????????????? | | ?????????????????????????????????????????????????? | | | | | +----------------------------------------------------+ Best States ------------- Heat Dissipation 28 Energy Generation 10 Energy Capacity 125 Matter Stores 300 Matter Capacity 300 Sight Range 18 Terrain Scan Range 14 Terrain Scan Density 85 Evasion (%) 55 Recoil Reduction 2 Item Schematics ----------------- None Robot Schematics ------------------ None Fabricated ------------ Nothing Alien Tech Used ----------------- None Achievements -------------- None Challenges ------------ None Game ------ Seed ThiefImpactFirepult Manual? 0 Play Time 00:10:32 Cumulative 21.2 hours Start 2024.05.13 @ 21:47:45 End 2024.05.13 @ 22:41:52 Sessions 2 Manual Loads 0 Difficulty Rogue Special Mode None Game No. 38 Rogue 38 Adventurer 0 Explorer 0 Win Type - Total 0 Types 0/0/0/0/0/0/0/0/0 Lore% 19 Gallery% 20 Achievement% 19 Wizard Run 0 Options --------- Layout 1 ASCII 0 Keyboard 0 Movement Mouse Keybinds 0 Fullscreen 2 Font 24/Smallcaps Map View 50x35 Zoom Use 0% Tactical HUD 1 Map Filters NONE Filters NONE Steam 1 RUN: e2d7b8bf-6596-44bf-b10f-db2aa6f62888